bitfinex-derivatives/quotes_SOLF0:USTF0_20250928
["timestamp","ask_amount","ask_price","bid_price","bid_amount"]
[1759073363472,9.42449047,202.72,202.68,7.44]
[1759073363664,9.42449047,202.72,202.67,124.4987]
[1759073363868,9.42449047,202.72,202.68,7.44]
[1759073364668,7.68,202.71,202.68,7.44]
[1759073366969,1.54271,202.75,202.68,11.8784]
[1759073367273,7.68,202.74,202.68,11.8784]
[1759073371675,3.50586707,202.73,202.68,11.8784]
[1759073371975,7.68,202.74,202.68,11.8784]
[1759073372176,3.50603552,202.73,202.68,4.4384]
[1759073372364,7.68,202.74,202.68,4.4384]
[1759073372569,3.50591878,202.73,202.69,7.44]
[1759073372769,7.68,202.74,202.69,7.44]
[1759073372969,11.18591878,202.73,202.68,4.4384]
[1759073373166,7.68,202.73,202.68,4.4384]
[1759073373376,7.68,202.73,202.69,7.44]
[1759073373668,1.74449047,202.73,202.67,120.06]
[1759073373874,7.68,202.72,202.67,120.06]
[1759073374074,1.74449047,202.73,202.67,120.06]
[1759073374265,7.68,202.72,202.67,120.06]
[1759073374671,1.74449047,202.73,202.67,120.06]
[1759073374873,7.68,202.72,202.66,11.8789]
[1759073377079,7.68,202.74,202.67,11.8786]
[1759073377379,3.50616839,202.73,202.67,11.8786]
[1759073377578,3.50616839,202.72,202.68,7.44]
[1759073377774,7.68,202.74,202.68,7.44]
[1759073377978,3.50617307,202.73,202.68,7.44]
[1759073378182,11.18617307,202.72,202.68,7.44]
[1759073378370,7.68,202.72,202.68,7.44]
[1759073379074,7.68,202.72,202.67,4.4386]
[1759073379279,7.68,202.72,202.68,7.44]
[1759073379870,7.68,202.72,202.67,4.4386]
[1759073380272,7.68,202.72,202.68,7.44]
[1759073380473,7.68,202.72,202.67,4.4386]
[1759073380682,9.22271,202.75,202.69,11.8783]
[1759073380882,5.25174968,202.74,202.66,7.44]
[1759073381077,3.50725921,202.73,202.66,7.44]
[1759073381284,1.54271,202.75,202.66,9.18449047]
[1759073381581,3.50786858,202.74,202.68,4.4384]
[1759073381782,1.54271,202.75,202.69,7.44]
[1759073381980,11.1877857,202.74,202.68,4.4384]
[1759073382283,3.50787936,202.73,202.69,7.44]
[1759073382475,1.54271,202.75,202.67,7.44]
[1759073382782,1.54271,202.75,202.69,7.44]
[1759073383678,1.54271,202.75,202.71,4.4377]
[1759073383879,1.54271,202.75,202.72,7.44]
[1759073384074,1.54271,202.75,202.71,4.4377]
[1759073384678,1.54271,202.75,202.72,7.44]
[1759073385178,1.54271,202.75,202.71,4.4377]
[1759073385379,1.54271,202.75,202.72,7.44]
[1759073385579,1.54271,202.75,202.73,7.44]
[1759073385978,1.54271,202.75,202.74,7.44]
[1759073389786,1.54271,202.75,202.74,9.18449047]
[1759073390196,1.54271,202.75,202.74,7.44]
[1759073403407,1e-05,202.75,202.74,7.44]
[1759073403805,1e-05,202.75,202.74,127.46]
[1759073404207,1e-05,202.75,202.74,127.39]
[1759073404804,1e-05,202.75,202.74,127.89]
[1759073406815,1e-05,202.75,202.74,129.13449047]
[1759073415917,1e-05,202.75,202.74,127.39]
[1759073416222,1e-05,202.75,202.74,129.13449047]
[1759073417316,1.74449047,202.88,202.82,68.9973]
[1759073417519,9.81449047,202.88,202.85,8.0]
[1759073417719,8.07,202.88,202.86,128.0]
[1759073418020,8.07,202.93,202.87,8.0]
[1759073418215,4.4323,202.97,202.84,68.99]
[1759073418216,8.07,202.89,202.88,119.98]
[1759073419220,8.07,202.89,202.88,124.414]
[1759073422427,8.07,202.92,202.88,124.414]
[1759073422726,2.72068277,202.93,202.88,124.414]
[1759073422926,8.07,202.92,202.88,124.414]
[1759073423126,2.72068277,202.93,202.88,124.414]
[1759073423324,8.07,202.92,202.88,124.414]
[1759073423525,7.72,202.92,202.88,124.414]
[1759073423724,2.72068277,202.93,202.88,124.414]
[1759073423926,7.72,202.92,202.88,124.414]
[1759073424229,2.72068277,202.93,202.88,124.414]
[1759073424526,2.72068277,202.94,202.9,4.4337]
[1759073424826,3.46645199,202.93,202.88,119.98]
[1759073425123,2.72068277,202.94,202.88,119.98]
[1759073425331,7.72,202.92,202.88,119.98]
[1759073425527,7.72,202.93,202.88,119.98]
[1759073425727,2.72068277,202.94,202.88,119.98]
[1759073426027,3.46664079,202.93,202.88,119.98]
[1759073426227,2.72068277,202.94,202.88,119.98]
[1759073426428,7.72,202.92,202.88,119.98]
[1759073426730,2.72068277,202.94,202.88,124.4142]
[1759073427036,7.72,202.92,202.88,124.4142]
[1759073427226,2.72068277,202.94,202.88,132.1342]
[1759073427422,3.45116069,202.93,202.88,132.1342]
[1759073427730,7.72,202.93,202.88,132.1342]
[1759073427930,2.72068277,202.94,202.88,132.1342]
[1759073428129,7.72,202.93,202.88,132.1342]
[1759073428330,2.72068277,202.94,202.88,132.1342]
[1759073429030,7.72,202.93,202.88,132.1342]
[1759073429228,7.72,202.93,202.89,4.4338]
[1759073429430,7.72,202.93,202.9,7.72]
[1759073432326,7.72,202.93,202.88,119.98]
[1759073432533,2.72068277,202.94,202.88,119.98]
[1759073433233,7.72,202.93,202.89,7.72]
[1759073433435,2.72068277,202.94,202.89,7.72]
[1759073433632,7.72,202.93,202.89,7.72]
[1759073433929,2.72068277,202.94,202.89,7.72]
[1759073434128,7.72,202.93,202.89,7.72]
[1759073434634,2.72068277,202.94,202.89,7.72]
[1759073434836,7.72,202.93,202.89,7.72]
[1759073436237,7.72,202.93,202.88,124.4141]
[1759073436434,10.44068277,202.94,202.88,132.1341]
[1759073437036,7.72,202.94,202.88,132.1341]
[1759073437726,7.72,202.91,202.85,4.4347]
[1759073437929,7.72,202.91,202.85,90.3947]
[1759073440234,7.72,202.91,202.85,85.96]
[1759073441540,14.87418277,202.92,202.86,7.72]
[1759073441735,11.17294748,202.91,202.85,93.68]
[1759073442034,7.72,202.88,202.85,7.72]
[1759073442340,2.72068277,202.89,202.85,7.72]
[1759073442539,7.72,202.88,202.85,7.72]
[1759073442741,2.72068277,202.89,202.85,7.72]
[1759073443131,2.72068277,202.86,202.77,7.72]
[1759073443334,7.72,202.85,202.77,127.64]
[1759073443541,7.72,202.85,202.78,7.72]
[1759073444537,7.72,202.85,202.79,4.436]
[1759073445634,7.72,202.85,202.78,7.72]
[1759073446039,3.45627299,202.84,202.78,7.72]
[1759073446237,3.45627299,202.83,202.78,7.72]
[1759073446545,7.72,202.85,202.78,7.72]
[1759073446845,3.45700216,202.84,202.78,7.72]
[1759073447043,3.45700216,202.83,202.78,7.72]
[1759073447237,7.72,202.85,202.78,7.72]
[1759073447439,3.45697612,202.84,202.78,7.72]
[1759073447643,7.72,202.82,202.75,12.157]
[1759073447944,7.72,202.82,202.75,7.72]
[1759073448648,12.1557,202.82,202.75,7.72]
[1759073449550,7.72,202.82,202.75,7.72]
[1759073449742,7.72,202.88,202.75,7.72]
[1759073449936,68.9453,202.98,202.8,7.72]
[1759073449937,7.72,202.92,202.8,7.72]
[1759073450143,3.45555218,202.91,202.83,7.72]
[1759073450344,3.45555218,202.9,202.83,7.72]
[1759073450546,3.45555218,202.89,202.83,7.72]
[1759073450747,7.72,202.92,202.84,4.4351]
[1759073450949,3.45513546,202.91,202.85,7.72]
[1759073451150,7.72,202.92,202.85,7.72]
[1759073451349,3.45542569,202.91,202.85,7.72]
[1759073451648,3.45542569,202.9,202.84,12.1551]
[1759073451839,7.72,202.91,202.84,12.1551]
[1759073452043,3.45542569,202.9,202.84,12.1551]
[1759073452241,7.72,202.91,202.84,12.1551]
[1759073452440,3.45559083,202.9,202.84,12.1551]
[1759073452641,7.72,202.91,202.84,12.1551]
[1759073452850,3.45559083,202.9,202.84,12.1551]
[1759073453052,7.72,202.91,202.84,12.1551]
[1759073453252,3.45619296,202.9,202.84,12.1551]
[1759073453451,7.72,202.91,202.84,12.1551]
[1759073453653,3.45619296,202.9,202.84,12.1551]
[1759073453957,7.74,202.88,202.79,2.72068277]
[1759073454161,7.74,202.88,202.8,7.64]
[1759073455159,7.74,202.88,202.8,12.0759]
[1759073455657,3.45771691,202.87,202.8,12.0759]
[1759073455859,7.74,202.88,202.8,12.0759]
[1759073456054,3.4577211,202.87,202.81,7.64]
[1759073456365,7.74,202.88,202.81,7.64]
[1759073456662,3.45806646,202.87,202.81,7.64]
[1759073456964,7.74,202.88,202.81,7.64]
[1759073458265,7.74,202.86,202.78,7.64]
[1759073458466,3.46154513,202.85,202.78,7.64]
[1759073460565,11.20154513,202.84,202.78,7.64]
[1759073460766,3.46253436,202.83,202.78,7.64]
[1759073461062,7.74,202.86,202.72,4.4376]
[1759073461368,71.70248277,202.87,202.73,7.64]
[1759073461369,7.74,202.83,202.73,7.64]
[1759073461569,7.74,202.81,202.73,7.64]
[1759073462064,7.74,202.86,202.74,7.64]
[1759073462268,3.46192532,202.85,202.74,7.64]
[1759073462468,7.74,202.86,202.77,7.64]
[1759073462670,3.46077122,202.85,202.77,7.64]
[1759073462858,7.74,202.86,202.77,7.64]
[1759073463062,3.46077132,202.85,202.77,7.64]
[1759073463267,7.74,202.86,202.77,7.64]
[1759073463469,3.46052617,202.85,202.77,7.64]
[1759073463669,12.1739,202.9,202.77,7.64]
[1759073463868,7.74,202.88,202.77,7.64]
[1759073464071,3.46012242,202.87,202.77,7.64]
[1759073464772,88.14548277,202.92,202.77,7.64]
[1759073464773,11.20012242,202.86,202.78,4.4364]
[1759073464979,7.74,202.86,202.79,7.64]
[1759073466169,3.46036586,202.85,202.79,7.64]
[1759073466378,7.74,202.86,202.79,7.64]
[1759073466568,3.46040831,202.85,202.79,7.64]
[1759073466772,7.74,202.83,202.73,7.64]
[1759073467070,7.74,202.81,202.73,7.64]
[1759073468470,4.436,202.8,202.73,7.64]
[1759073468667,7.74,202.78,202.67,18.96]
[1759073468865,7.74,202.78,202.68,7.64]
[1759073469669,7.74,202.78,202.69,4.4383]
[1759073469868,7.74,202.78,202.7,7.64]
[1759073470070,7.74,202.78,202.71,4.4377]
[1759073474578,7.74,202.78,202.7,7.64]
[1759073475677,4.4366,202.77,202.7,7.64]
[1759073476075,7.76,202.76,202.7,7.64]
[1759073487186,7.76,202.76,202.7,12.078]
[1759073491689,4.436,202.8,202.71,4.4377]
[1759073491996,1.74384104,202.82,202.72,7.65]
[1759073492188,7.72,202.83,202.75,7.65]
[1759073492994,12.1555,202.83,202.75,12.0869]
[1759073493596,12.1555,202.83,202.75,7.65]
[1759073493993,7.72,202.83,202.76,1.74384104]
[1759073494197,9.46384104,202.86,202.77,7.65]
[1759073494393,3.4578081,202.85,202.79,7.65]
[1759073494592,9.46384104,202.86,202.79,7.65]
[1759073494794,9.46384104,202.86,202.79,12.086]
[1759073495796,7.72,202.86,202.79,12.086]
[1759073497498,7.72,202.86,202.8,4.4358]
[1759073504299,7.72,202.92,202.82,7.65]
[1759073504601,9.46384104,202.9,202.82,7.65]
[1759073504802,3.46097184,202.89,202.82,7.65]
[1759073505002,7.72,202.9,202.82,7.65]
[1759073505208,3.46059941,202.89,202.82,7.65]
[1759073505396,9.46384104,202.9,202.82,7.65]
[1759073505598,3.45982835,202.89,202.82,12.0853]
[1759073505892,9.46384104,202.9,202.82,12.0853]
[1759073506095,3.45982667,202.89,202.82,12.0853]
[1759073506291,9.46384104,202.9,202.82,12.0853]
[1759073509599,9.46384104,202.9,202.83,4.4351]
[1759073509906,9.46384104,202.9,202.84,7.65]
[1759073510799,9.46384104,202.9,202.84,12.0849]
[1759073511004,7.72,202.9,202.84,7.65]
[1759073512800,1.74384104,202.92,202.86,7.65]
[1759073513108,7.72,202.89,202.81,9.39384104]
[1759073514615,7.72,202.89,202.83,4.4352]
[1759073514798,7.72,202.89,202.82,7.35]
[1759073515599,7.72,202.89,202.85,7.35]
[1759073517207,7.72,202.89,202.84,4.4349]
[1759073517404,7.72,202.89,202.85,7.35]
[1759073517601,7.72,202.89,202.84,4.4349]
[1759073517802,7.72,202.89,202.85,7.35]
[1759073519418,7.43,202.89,202.82,11.7855]
[1759073519809,7.43,202.89,202.82,7.35]
[1759073520910,1.74384104,202.9,202.84,4.4349]
[1759073521307,9.17384104,202.9,202.84,4.4349]
[1759073524815,1.74384104,202.9,202.85,11.7847]
[1759073525021,7.43,202.89,202.86,7.35]
[1759073525627,1.74384104,202.88,202.8,7.35]
[1759073525826,7.43,202.87,202.8,7.35]
[1759073526722,7.43,202.87,202.81,4.4356]
[1759073528923,1.74384104,202.86,202.81,4.4356]
[1759073529123,1.74384104,202.86,202.8,7.35]
[1759073529326,7.43,202.85,202.79,4.4362]
[1759073533330,1.74384104,202.86,202.8,4.4357]
[1759073533534,9.31384104,202.86,202.8,12.0457]
[1759073535334,7.57,202.84,202.81,7.61]
[1759073538637,7.57,202.84,202.81,12.0455]
[1759073538836,1.74384104,202.9,202.8,7.61]
[1759073539131,11.03264462,202.89,202.8,7.61]
[1759073539337,7.57,202.85,202.78,0.71401846]
[1759073539934,1.74384104,202.84,202.78,5.15031846]
[1759073540136,11.03342839,202.83,202.78,5.15031846]
[1759073540335,1.74384104,202.84,202.78,5.15031846]
[1759073540640,7.57,202.82,202.78,12.76031846]
[1759073542241,7.57,202.82,202.79,7.61]
[1759073542937,7.57,202.81,202.75,76.22]
[1759073543143,1.74384104,202.8,202.75,76.22]
[1759073543342,7.57,202.79,202.75,76.22]
[1759073543536,7.61,202.79,202.75,76.22]
[1759073543741,1.74384104,202.8,202.75,76.22]
[1759073544142,7.61,202.79,202.75,76.22]
[1759073544344,2.72367104,202.83,202.75,76.22]
[1759073544642,7.61,202.81,202.75,76.22]
[1759073545541,7.61,202.85,202.76,7.53]
[1759073545743,3.4630074,202.84,202.76,7.53]
[1759073545943,3.4630074,202.83,202.76,7.53]
[1759073546138,3.4630074,202.82,202.78,69.0081]
[1759073546342,7.61,202.9,202.79,7.53]
[1759073546540,7.61,202.88,202.79,7.53]
[1759073546735,7.61,202.86,202.79,7.53]
[1759073546935,3.46142478,202.85,202.79,11.9659]
[1759073547136,7.61,202.83,202.79,11.9659]
[1759073547545,7.61,202.83,202.8,7.53]
[1759073549744,7.61,202.83,202.79,4.4359]
[1759073549943,7.61,202.83,202.79,11.9659]
[1759073550145,12.0449,202.85,202.76,4.4365]
[1759073550340,7.61,202.83,202.76,4.4365]
[1759073550546,3.46034956,202.82,202.76,4.4365]
[1759073550739,7.61,202.83,202.76,4.4365]
[1759073550938,3.46034967,202.82,202.76,4.4365]
[1759073551142,7.61,202.83,202.76,4.4365]
[1759073551341,3.459989,202.82,202.76,4.4365]
[1759073551541,12.0454,202.83,202.76,4.4365]
[1759073551742,3.459989,202.82,202.76,4.4365]
[1759073551934,7.61,202.84,202.77,7.53]
[1759073552141,3.45998459,202.83,202.77,7.53]
[1759073552440,7.61,202.84,202.77,7.53]
[1759073552633,3.45959406,202.83,202.77,7.53]
[1759073552837,7.61,202.84,202.77,7.53]
[1759073553038,3.45959406,202.83,202.77,7.53]
[1759073553236,7.61,202.84,202.77,7.53]
[1759073553439,3.45939775,202.83,202.77,7.53]
[1759073553639,7.61,202.84,202.78,4.4362]
[1759073553844,7.61,202.82,202.78,11.9662]
[1759073554447,7.61,202.84,202.78,11.9662]
[1759073554647,3.45923143,202.83,202.78,11.9662]
[1759073554841,7.61,202.84,202.78,11.9662]
[1759073555045,7.61,202.82,202.76,4.4367]
[1759073558343,7.61,202.82,202.75,76.22]
[1759073558548,3.45947283,202.81,202.75,76.22]
[1759073558746,7.61,202.82,202.75,76.22]
[1759073558951,3.45964121,202.81,202.75,76.22]
[1759073559248,7.61,202.82,202.75,76.22]
[1759073559444,3.4594027,202.81,202.75,76.22]
[1759073559644,12.0457,202.82,202.75,80.6569]
[1759073559850,3.45940186,202.81,202.75,80.6569]
[1759073560148,12.0457,202.82,202.75,80.6569]
[1759073560345,3.45923937,202.81,202.75,80.6569]
[1759073560543,12.0457,202.82,202.75,80.6569]
[1759073560746,3.45923937,202.81,202.75,80.6569]
[1759073560947,3.45927699,202.8,202.75,80.6569]
[1759073561150,7.61,202.81,202.75,80.6569]
[1759073561350,7.61,202.79,202.75,88.1869]
[1759073561849,7.61,202.79,202.76,7.53]
[1759073562946,7.61,202.79,202.76,11.9666]
[1759073563147,7.61,202.84,202.76,4.4366]
[1759073563346,7.61,202.82,202.76,4.4366]
[1759073563548,7.61,202.8,202.76,11.9666]
[1759073567256,7.61,202.8,202.76,4.4366]
[1759073567561,7.61,202.8,202.77,11.9664]
[1759073568263,7.61,202.84,202.75,80.6569]
[1759073568459,7.61,202.82,202.75,80.6569]
[1759073568658,3.45986379,202.81,202.75,80.6569]
[1759073568956,7.61,202.82,202.75,80.6569]
[1759073569151,3.45969875,202.81,202.75,80.6569]
[1759073569352,7.61,202.82,202.75,80.6569]
[1759073569555,3.46014869,202.81,202.75,80.6569]
[1759073569854,7.61,202.84,202.75,80.6569]
[1759073570055,10.33367104,202.82,202.75,80.6569]
[1759073570256,7.61,202.8,202.75,4.4369]
[1759073570562,7.61,202.81,202.75,11.9669]
[1759073570761,3.46075272,202.8,202.75,11.9669]
[1759073571062,7.61,202.81,202.75,11.9669]
[1759073571261,7.61,202.79,202.75,11.9669]
[1759073571461,7.61,202.81,202.75,11.9669]
[1759073571661,7.61,202.79,202.75,11.9669]
[1759073574464,4.4358,202.81,202.75,11.9669]
[1759073574652,7.33,202.79,202.75,11.9669]
[1759073574858,7.33,202.8,202.75,11.9669]
[1759073575066,10.79173857,202.79,202.75,11.9669]
[1759073575255,7.33,202.79,202.76,7.42]
[1759073575455,7.33,202.83,202.76,7.42]
[1759073575658,3.46117831,202.82,202.76,7.42]
[1759073575862,7.33,202.83,202.76,7.42]
[1759073576063,3.46117537,202.82,202.76,7.42]
[1759073576265,7.33,202.83,202.76,7.42]
[1759073576461,3.46131226,202.82,202.76,7.42]
[1759073576662,7.33,202.83,202.79,4.436]
[1759073576865,3.46131142,202.82,202.79,11.856]
[1759073577165,2.72367104,202.88,202.79,11.856]
[1759073577462,4.4349,202.85,202.79,7.42]
[1759073577667,3.46145899,202.84,202.77,4.4365]
[1759073577867,10.79145899,202.83,202.77,4.4365]
[1759073578064,7.33,202.81,202.77,11.8565]
[1759073578262,7.33,202.81,202.77,4.4365]
[1759073578464,7.33,202.81,202.78,7.42]
[1759073579568,4.4353,202.83,202.78,7.42]
[1759073579867,7.33,202.81,202.78,7.42]
[1759073580070,4.4349,202.85,202.78,4.4362]
[1759073580269,10.79055828,202.84,202.78,4.4362]
[1759073580570,7.33,202.82,202.79,7.42]
[1759073580772,3.46055828,202.81,202.78,4.4362]
[1759073580969,7.33,202.85,202.79,11.856]
[1759073581168,7.33,202.83,202.8,7.42]
[1759073581475,3.46062306,202.82,202.8,7.42]
[1759073581675,7.33,202.83,202.8,7.42]
[1759073581969,3.4609697,202.82,202.79,4.436]
[1759073582274,7.33,202.86,202.8,7.42]
[1759073582468,3.46127512,202.85,202.8,7.42]
[1759073582773,7.33,202.83,202.8,7.42]
[1759073582974,3.46127512,202.82,202.8,7.42]
[1759073583171,4.4349,202.85,202.79,7.42]
[1759073583369,77.23861038,202.91,202.78,4.4362]
[1759073583370,7.33,202.91,202.8,69.0035]
[1759073583676,3.46083448,202.9,202.85,4.4348]
[1759073583869,3.46083448,202.89,202.86,7.42]
[1759073584065,3.46083448,202.88,202.86,7.42]
[1759073584269,7.33,202.91,202.85,11.8548]
[1759073584465,3.45994941,202.9,202.85,4.4348]
[1759073584672,3.45994941,202.89,202.85,4.4348]
[1759073584873,3.45994941,202.88,202.85,4.4348]
[1759073585068,7.33,202.91,202.85,11.8548]
[1759073585377,10.78994857,202.9,202.86,7.42]
[1759073585579,3.45994857,202.89,202.86,7.42]
[1759073585878,3.45994857,202.88,202.86,7.42]
[1759073586177,7.33,202.9,202.83,4.4352]
[1759073586372,3.45783794,202.89,202.83,4.4352]
[1759073586572,3.45783794,202.88,202.84,7.42]
[1759073586773,7.33,202.9,202.84,7.42]
[1759073587077,3.45783794,202.89,202.84,7.42]
[1759073587278,3.45783794,202.88,202.83,4.4352]
[1759073587473,7.33,202.9,202.84,7.42]
[1759073587773,3.45699541,202.89,202.83,4.4352]
[1759073587976,3.45699541,202.88,202.83,4.4352]
[1759073588278,7.33,202.9,202.84,7.42]
[1759073588477,3.45615252,202.89,202.83,4.4352]
[1759073588677,3.45615252,202.88,202.84,7.42]
[1759073588877,7.33,202.9,202.84,7.42]
[1759073589072,3.45615252,202.89,202.83,4.4352]
[1759073589279,7.33,202.9,202.84,7.42]
[1759073589474,3.45539004,202.89,202.84,4.4349]
[1759073589674,7.33,202.9,202.84,4.4349]
[1759073589979,3.45539004,202.89,202.85,7.42]
[1759073590175,7.33,202.9,202.85,7.42]
[1759073590381,7.33,202.9,202.84,4.4349]
[1759073590382,3.45470162,202.89,202.84,4.4349]
[1759073590680,7.33,202.9,202.84,4.4349]
[1759073590882,3.45470162,202.89,202.85,8.01]
[1759073591082,7.33,202.9,202.85,8.01]
[1759073591283,3.45470162,202.89,202.84,4.4349]
[1759073591582,7.33,202.9,202.84,4.4349]
[1759073591780,3.45407639,202.89,202.85,8.01]
[1759073592081,7.33,202.9,202.84,4.4349]
[1759073592277,3.45407639,202.89,202.84,4.4349]
[1759073592479,7.33,202.9,202.84,4.4349]
[1759073592679,3.45355719,202.89,202.85,8.01]
[1759073592880,7.33,202.9,202.85,8.01]
[1759073593077,3.45355719,202.89,202.84,4.4349]
[1759073593278,7.33,202.9,202.84,4.4349]
[1759073593583,3.45306658,202.89,202.85,8.01]
[1759073593779,7.33,202.9,202.85,8.01]
[1759073593980,11.35306658,202.89,202.85,8.01]
[1759073594181,7.9,202.89,202.84,4.4349]
[1759073594476,7.9,202.89,202.85,8.01]
[1759073594678,2.72367104,202.94,202.86,8.01]
[1759073594880,3.45260161,202.93,202.86,8.01]
[1759073595089,3.45260161,202.92,202.86,8.01]
[1759073595379,11.35260161,202.91,202.86,4.4346]
[1759073595586,7.9,202.91,202.87,8.01]
[1759073595788,7.9,202.91,202.86,4.4346]
[1759073596487,7.9,202.91,202.87,8.01]
[1759073596791,7.9,202.91,202.86,4.4346]
[1759073597695,7.9,202.91,202.87,8.01]
[1759073598291,7.9,202.91,202.86,4.4346]
[1759073599188,7.9,202.91,202.87,8.01]
[1759073599987,7.9,202.91,202.87,4.4342]
[1759073600191,7.9,202.91,202.88,8.01]
[1759073601296,7.9,202.93,202.85,12.4447]
[1759073601496,3.44737032,202.92,202.85,12.4447]
[1759073601697,7.9,202.91,202.85,12.4447]
[1759073606306,9.64135244,202.91,202.85,12.4447]
[1759073607400,7.68,202.9,202.85,12.4447]
[1759073607605,7.68,202.9,202.85,4.4347]
[1759073608101,1.74135244,202.91,202.85,4.4347]
[1759073608405,7.68,202.9,202.85,4.4347]
[1759073608602,1.74135244,202.91,202.85,4.4347]
[1759073609000,7.68,202.9,202.85,4.4347]
[1759073609396,7.68,202.9,202.85,12.0847]
[1759073609609,1.74135244,202.91,202.85,12.0847]
[1759073610202,4.4337,202.9,202.85,7.65]
[1759073610404,7.68,202.89,202.85,7.65]
[1759073610700,9.42135244,202.89,202.83,4.4352]
[1759073611607,7.68,202.88,202.85,7.65]
[1759073612210,9.42135244,202.91,202.85,7.65]
[1759073612403,11.1253632,202.9,202.84,12.0849]
[1759073612606,7.68,202.9,202.84,12.0849]
[1759073613508,1.74135244,202.91,202.85,4.4347]
[1759073614005,9.42135244,202.91,202.85,4.4347]
[1759073614308,9.42135244,202.91,202.85,12.0847]
[1759073615711,9.42135244,202.91,202.88,7.65]
[1759073616205,7.68,202.91,202.88,7.65]
[1759073618302,7.68,202.91,202.87,4.4344]
[1759073618708,7.68,202.91,202.88,7.65]
[1759073619713,7.68,202.91,202.87,4.4344]
[1759073620116,7.68,202.91,202.88,7.65]
[1759073621416,7.68,202.91,202.87,4.4344]
[1759073622117,7.68,202.91,202.88,7.65]
[1759073626420,3.4554117,202.9,202.88,7.65]
[1759073626618,1.74135244,202.93,202.88,7.65]
[1759073626820,7.68,202.91,202.88,7.65]
[1759073627016,3.45557655,202.9,202.88,7.65]
[1759073627322,7.68,202.91,202.88,7.65]
[1759073627515,3.45702822,202.9,202.88,7.65]
[1759073627717,7.68,202.92,202.89,7.65]
[1759073628016,1.74135244,202.93,202.89,7.65]
[1759073628017,3.45682738,202.91,202.89,7.65]
[1759073628324,7.68,202.92,202.89,7.65]
[1759073628524,3.45849209,202.91,202.89,7.65]
[1759073628817,7.68,202.92,202.89,7.65]
[1759073629022,3.45849209,202.91,202.89,7.65]
[1759073629218,7.68,202.92,202.89,12.0838]
[1759073629417,3.45823644,202.91,202.89,12.0838]
[1759073629618,7.68,202.92,202.89,12.0838]
[1759073629919,3.45823644,202.91,202.89,12.0838]
[1759073630122,7.68,202.92,202.89,12.0838]
[1759073630312,3.45816111,202.91,202.89,12.0838]
[1759073630514,1.74135244,202.94,202.89,12.0838]
[1759073630822,3.45816111,202.93,202.89,12.0838]
[1759073631121,7.68,202.91,202.84,7.65]
[1759073631423,3.45816111,202.9,202.84,7.65]
[1759073631723,7.68,202.91,202.84,7.65]
[1759073631925,3.45849753,202.9,202.84,7.65]
[1759073632120,7.68,202.91,202.87,4.4342]
[1759073632323,3.45854884,202.9,202.88,7.65]
[1759073632525,9.42135244,202.94,202.88,7.65]
[1759073632718,11.13856522,202.93,202.86,7.65]